bitfinex/quotes_SOLUSD_20260203
["timestamp","ask_amount","ask_price","bid_price","bid_amount"]
[1770138360625,20.90881391,100.74,100.7,14.32037387]
[1770138360937,14.36934903,100.74,100.7,14.32037387]
[1770138361116,20.90881391,100.74,100.7,14.32037387]
[1770138361314,16.46531583,100.75,100.7,45.68605523]
[1770138361519,10.98214455,100.78,100.73,10.92980455]
[1770138361751,4.44267967,100.77,100.73,10.92980455]
[1770138361937,10.98214455,100.74,100.7,9.9300342]
[1770138362246,16.46556559,100.75,100.71,14.31970315]
[1770138362438,6.53946488,100.74,100.71,14.31970315]
[1770138362646,14.36878038,100.75,100.69,118.85470509]
[1770138362647,6.53946488,100.72,100.69,123.24504476]
[1770138362826,6.53946488,100.72,100.69,91.27470509]
[1770138362827,6.53946488,100.71,100.69,91.27470509]
[1770138363034,10.98214455,100.73,100.69,105.59596804]
[1770138363341,10.98214455,100.73,100.69,95.66504476]
[1770138363655,6.53946488,100.71,100.69,91.27470509]
[1770138364428,10.93771775,100.7,100.66,41.90425476]
[1770138364642,10.93771775,100.7,100.66,14.32425476]
[1770138365528,6.53946488,100.69,100.66,4.39033967]
[1770138365830,6.53946488,100.67,100.65,0.1]
[1770138366232,6.53946488,100.66,100.65,0.1]
[1770138366458,6.57362495,100.66,100.65,0.1]
[1770138367247,14.28867747,100.67,100.65,0.1]
[1770138367452,6.57362495,100.66,100.65,0.1]
[1770138367647,20.86230242,100.67,100.65,0.1]
[1770138368349,16.50805769,100.66,100.65,0.1]
[1770138368930,9.93443274,100.66,100.65,0.1]
[1770138369128,16.50805769,100.66,100.65,1e-08]
[1770138369663,20.86154984,100.67,100.65,1e-08]
[1770138369957,10.92789529,100.66,100.65,1e-08]
[1770138370144,6.57362495,100.65,100.64,0.309646]
[1770138370339,16.50904472,100.65,100.64,0.309646]
[1770138370541,20.86264758,100.66,100.64,0.309646]
[1770138370753,14.28902263,100.66,100.64,0.309646]
[1770138370947,20.86264758,100.66,100.64,0.309646]
[1770138371540,6.57362495,100.65,100.64,0.309646]
[1770138371941,14.28902263,100.66,100.64,0.309646]
[1770138372258,20.86264758,100.66,100.64,0.309646]
[1770138372462,16.50904472,100.65,100.64,0.309646]
[1770138372667,20.86246679,100.66,100.64,0.309646]
[1770138372862,39.12492369,100.66,100.63,0.1]
[1770138373150,20.8613412,100.67,100.63,4.49033967]
[1770138373355,4.35427034,100.67,100.63,11.06396462]
[1770138373550,10.92789529,100.69,100.65,4.39033967]
[1770138373749,10.92789529,100.71,100.66,10.96396462]
[1770138373931,45.68216937,100.71,100.66,10.96396462]
[1770138374264,14.28377088,100.71,100.67,10.96396462]
[1770138374443,14.28377088,100.71,100.65,4.39033967]
[1770138374444,4.35427034,100.71,100.65,4.39033967]
[1770138374760,10.92789529,100.7,100.66,14.32429952]
[1770138374937,4.35427034,100.69,100.64,14.32646626]
[1770138375138,6.57362495,100.68,100.65,14.32524262]
[1770138375340,6.57362495,100.68,100.65,4.39033967]
[1770138375546,10.92789529,100.69,100.65,14.32568656]
[1770138375739,6.57362495,100.68,100.65,4.39033967]
[1770138375953,4.35427034,100.69,100.65,4.39033967]
[1770138376153,10.92789529,100.71,100.67,4.39033967]
[1770138376561,4.35427034,100.73,100.68,10.96396462]
[1770138376747,45.67424691,100.73,100.68,10.96396462]
[1770138376946,20.85542432,100.73,100.68,4.39033967]
[1770138377262,45.67424691,100.73,100.69,4.39033967]
[1770138378765,16.50115398,100.73,100.7,4.39033967]
[1770138378947,20.85499005,100.74,100.7,4.39033967]
[1770138379147,6.57362495,100.73,100.7,4.39033967]
[1770138379348,10.92789529,100.73,100.69,9.93135654]
[1770138379656,6.57362495,100.72,100.68,20.89601868]
[1770138380061,10.92789529,100.73,100.68,20.89601868]
[1770138380559,6.57362495,100.69,100.66,4.3447258]
[1770138380763,16.50332859,100.71,100.67,14.27816917]
[1770138381065,16.50332859,100.71,100.61,39.75393682]
[1770138381066,4.17819819,100.67,100.6,73.93781984]
[1770138381267,6.57362495,100.61,100.57,0.1]
[1770138381771,6.57362495,100.6,100.57,0.1]
[1770138382071,6.57362495,100.61,100.58,10.04233283]
[1770138382256,6.57362495,100.61,100.58,0.1]
[1770138382756,6.57362495,100.6,100.58,0.1]
[1770138383267,16.51220023,100.62,100.58,4.4447258]
[1770138383483,6.57362495,100.6,100.58,0.1]
[1770138383671,6.57362495,100.59,100.57,0.1]
[1770138383858,6.57362495,100.58,100.57,0.1]
[1770138384062,6.57362495,100.59,100.57,0.1]
[1770138384950,6.57362495,100.6,100.57,4.4447258]
[1770138385156,6.57362495,100.59,100.57,0.1]
[1770138385565,10.75182314,100.6,100.57,0.1]
[1770138386761,4.17819819,100.59,100.57,0.1]
[1770138386959,6.57362495,100.58,100.57,0.1]
[1770138387368,6.57362495,100.58,100.55,41.9895096]
[1770138387574,6.57362495,100.57,100.55,41.9895096]
[1770138387972,6.57362495,100.58,100.55,41.9895096]
[1770138388268,38.96955488,100.6,100.55,41.9895096]
[1770138388269,6.57362495,100.6,100.57,4.3447258]
[1770138388574,6.57362495,100.59,100.58,27.6]
[1770138389372,6.57362495,100.59,100.56,14.00474578]
[1770138389772,6.57362495,100.57,100.55,0.1]
[1770138389952,6.57362495,100.57,100.52,14.29227746]
[1770138389953,6.57362495,100.56,100.52,14.29227746]
[1770138390154,4.17819819,100.57,100.52,14.29227746]
[1770138390155,6.57362495,100.55,100.52,14.29256327]
[1770138390654,4.17819819,100.58,100.53,4.3447258]
[1770138390855,6.57362495,100.57,100.54,9.94629003]
[1770138391469,11.22767395,100.61,100.52,4.3447258]
[1770138391470,6.57362495,100.55,100.52,4.3447258]
[1770138391769,6.57362495,100.55,100.52,14.29223506]
[1770138391969,6.57362495,100.56,100.53,14.29199353]
[1770138392584,6.57362495,100.55,100.53,14.29199353]
[1770138392956,6.57362495,100.55,100.53,4.3447258]
[1770138393175,6.57362495,100.55,100.53,14.29184173]
[1770138393374,6.57362495,100.56,100.53,14.29184173]
[1770138393569,9.9427476,100.58,100.53,4.3447258]
[1770138393877,6.57362495,100.56,100.53,4.3447258]
[1770138394576,6.57362495,100.55,100.52,14.29250202]
[1770138394771,6.57362495,100.56,100.53,9.94701976]
[1770138395078,6.57362495,100.55,100.52,14.29262039]
[1770138395585,14.12203708,100.57,100.52,14.29262039]
[1770138395774,6.57362495,100.56,100.52,14.29262039]
[1770138396276,4.17819819,100.56,100.51,54.90637821]
[1770138396572,6.57362495,100.55,100.52,14.29277318]
[1770138396779,6.57362495,100.56,100.53,4.3447258]
[1770138397077,6.57362495,100.55,100.52,4.3447258]
[1770138397275,4.17819819,100.56,100.52,14.29255575]
[1770138397481,6.57362495,100.55,100.52,14.29255575]
[1770138397870,20.69618484,100.56,100.52,14.29255575]
[1770138398075,6.57362495,100.55,100.52,14.29255575]
[1770138398271,6.57362495,100.54,100.51,14.29336915]
[1770138398673,4.17819819,100.55,100.51,14.29336915]
[1770138398877,6.57362495,100.54,100.51,14.29336915]
[1770138399064,6.57362495,100.54,100.51,14.2939276]
[1770138399377,4.17819819,100.56,100.52,10.91835075]
[1770138399572,10.75182314,100.56,100.52,4.3447258]
[1770138399883,20.6961492,100.56,100.52,4.3447258]
[1770138400483,10.75182314,100.56,100.52,4.3447258]
[1770138400668,14.12062616,100.58,100.53,4.3447258]
[1770138400875,10.75182314,100.59,100.55,4.3447258]
[1770138401265,20.69325012,100.59,100.55,14.28959583]
[1770138401466,10.75182314,100.59,100.55,14.28959583]
[1770138401668,10.75182314,100.61,100.57,10.91835075]
[1770138402370,14.1177082,100.61,100.57,4.3447258]
[1770138402571,4.17819819,100.59,100.55,9.94487003]
[1770138402791,6.57362495,100.57,100.54,41.91046079]
[1770138402981,10.75182314,100.58,100.55,9.94529384]
[1770138403175,10.75182314,100.58,100.54,38.53835075]
[1770138403176,10.75182314,100.58,100.54,41.9105717]
[1770138403374,6.57362495,100.58,100.55,4.3447258]
[1770138403694,20.69041182,100.62,100.57,10.91835075]
[1770138403887,20.69041182,100.62,100.58,4.3447258]
[1770138404194,20.69041182,100.62,100.58,10.91835075]
[1770138404576,4.17819819,100.64,100.59,10.91835075]
[1770138404776,20.68826959,100.64,100.6,4.3447258]
[1770138404977,4.17819819,100.64,100.6,10.91835075]
[1770138405194,14.11412977,100.65,100.61,16.51299479]
[1770138405377,20.68775472,100.65,100.61,9.93936984]
[1770138405679,0.2,100.68,100.65,4.3447258]
[1770138405879,20.67836671,100.74,100.7,5.177]
[1770138406184,20.67836671,100.74,100.7,0.66463427]
[1770138406185,10.75182314,100.71,100.7,0.66463427]
[1770138406391,10.75182314,100.71,100.65,38.53835075]
[1770138406695,6.57362495,100.69,100.66,4.3447258]
[1770138407185,10.71004115,100.7,100.66,14.27876309]
[1770138407380,103.33041838,100.74,100.69,10.91835075]
[1770138407381,15.88578726,100.74,100.69,10.91835075]
[1770138407576,10.71004115,100.74,100.69,10.91835075]
[1770138407776,6.57362495,100.72,100.67,4.3447258]
[1770138408093,16.50046292,100.74,100.69,10.91835075]
[1770138408315,20.63600678,100.75,100.7,10.91835075]
[1770138408476,10.71004115,100.77,100.72,6.57362495]
[1770138408678,6.57362495,100.76,100.71,10.91835075]
[1770138408985,6.57362495,100.75,100.71,4.3447258]
[1770138409184,6.57362495,100.75,100.7,6.57362495]
[1770138409185,24.70156734,100.78,100.74,6.57362495]
[1770138409493,20.63228355,100.79,100.74,6.57362495]
[1770138409876,6.57362495,100.78,100.73,10.91835075]
[1770138410298,6.57362495,100.76,100.72,9.92851469]
[1770138410610,6.57362495,100.76,100.72,14.00969892]
[1770138410791,4.1364162,100.78,100.72,14.00969892]
[1770138410973,6.57362495,100.74,100.7,4.08118423]
[1770138411178,14.06389197,100.74,100.7,4.08118423]
[1770138411387,6.57362495,100.72,100.7,4.08118423]
[1770138411591,6.57362495,100.72,100.69,9.93084974]
[1770138411789,6.57362495,100.71,100.68,4.08118423]
[1770138412699,6.57362495,100.71,100.68,14.01355687]
[1770138413090,6.57362495,100.71,100.68,4.08118423]
[1770138413291,6.57362495,100.71,100.68,14.01354893]
[1770138414082,10.71004115,100.72,100.68,14.01354893]
[1770138415200,6.57362495,100.7,100.67,9.93308475]
[1770138415409,6.57362495,100.7,100.67,14.32862779]
[1770138416802,4.1364162,100.71,100.67,14.32862779]
[1770138417004,6.57362495,100.7,100.67,14.32862779]
[1770138417308,6.57362495,100.72,100.68,14.3273095]
[1770138418710,6.57362495,100.73,100.69,4.39554304]
[1770138418891,6.57362495,100.74,100.7,4.39554304]
[1770138419321,6.57362495,100.74,100.7,14.32552553]
[1770138419523,6.57362495,100.73,100.69,4.39554304]
[1770138420326,6.57362495,100.73,100.7,9.93022752]
[1770138420491,6.57362495,100.72,100.7,9.93022752]
[1770138420692,6.57362495,100.72,100.69,14.32652661]
[1770138421007,10.71004115,100.76,100.72,4.39554304]
[1770138421317,20.63507034,100.76,100.72,14.32361841]
[1770138421812,20.63507034,100.76,100.67,14.32847958]
[1770138421813,4.1364162,100.72,100.67,14.32847958]
[1770138421990,4.27527085,100.75,100.67,14.32847958]
[1770138421991,6.57362495,100.69,100.67,4.39554304]
[1770138422186,6.57362495,100.69,100.67,14.32898895]
[1770138422718,6.57362495,100.71,100.68,4.39554304]
[1770138423298,6.57362495,100.7,100.67,14.32898895]
[1770138424419,6.57362495,100.69,100.67,14.32898895]
[1770138424716,9.92978607,100.71,100.63,41.93241534]
[1770138424717,6.57362495,100.68,100.63,41.93241534]
[1770138424920,6.57362495,100.66,100.64,9.93637244]
[1770138425217,6.57362495,100.66,100.63,41.9324155]
[1770138425910,6.57362495,100.67,100.64,9.93603385]
[1770138426102,34.75670307,100.7,100.64,4.39554304]
[1770138426301,34.75670307,100.7,100.63,14.33246275]
[1770138426495,6.57362495,100.66,100.63,14.33283043]
[1770138426906,6.57362495,100.66,100.63,4.39554304]
[1770138427094,6.57362495,100.65,100.63,4.39554304]
[1770138427290,9.9349366,100.66,100.62,4.39554304]
[1770138427514,6.57362495,100.66,100.63,4.39554304]
[1770138427714,6.57362495,100.65,100.62,9.93768755]
[1770138428002,6.57362495,100.65,100.62,14.33323059]
[1770138428505,16.50931413,100.66,100.62,14.33323059]
[1770138429115,6.57477019,100.65,100.62,14.33323059]
[1770138430011,6.57477019,100.65,100.62,4.39554304]
[1770138430518,38.90362962,100.67,100.58,14.33716703]
[1770138430519,4.1364162,100.62,100.58,14.33716703]
[1770138430815,4.27857777,100.64,100.57,4.39554304]
[1770138430994,4.27857777,100.66,100.6,6.57477019]
[1770138431195,16.50836883,100.67,100.64,4.39554304]
[1770138431494,10.71118639,100.66,100.62,4.39554304]
[1770138431692,16.50836883,100.67,100.63,4.39554304]
[1770138431896,9.93359864,100.67,100.64,4.39554304]
[1770138432199,34.76721342,100.67,100.62,4.39554304]
[1770138432397,6.57477019,100.66,100.62,4.39554304]
[1770138432705,16.50836883,100.67,100.63,4.39554304]
[1770138432899,6.57477019,100.64,100.61,4.39554304]
[1770138433133,6.57477019,100.65,100.61,20.90942794]
[1770138433317,4.1364162,100.63,100.59,4.39554304]
[1770138433505,6.57477019,100.61,100.59,4.39554304]
[1770138434112,6.57477019,100.62,100.59,14.33680879]
[1770138434317,6.57477019,100.63,100.6,4.39554304]
[1770138435715,24.83909156,100.65,100.61,4.39554304]
[1770138435716,10.71118639,100.65,100.61,4.39554304]
[1770138435906,20.64660651,100.65,100.61,14.33469055]
[1770138436308,6.57477019,100.64,100.61,4.39554304]
[1770138436510,6.57477019,100.63,100.6,9.93992408]
[1770138436711,6.57477019,100.63,100.6,14.33546712]
[1770138436898,9.93514113,100.66,100.62,4.39554304]
[1770138437111,20.64632752,100.66,100.62,4.39554304]
[1770138437305,6.57477019,100.65,100.62,4.39554304]
[1770138437722,4.1364162,100.62,100.58,14.33767339]
[1770138437911,9.93739441,100.63,100.59,4.39554304]
[1770138438104,6.57477019,100.61,100.57,14.33830804]
[1770138438421,6.57477019,100.6,100.58,14.33781953]
[1770138438626,38.91729664,100.63,100.58,4.39554304]
[1770138438818,16.5121646,100.63,100.59,4.39554304]
[1770138439022,20.66081149,100.63,100.59,1.90681958]
[1770138439427,6.57477019,100.61,100.58,9.9423272]
[1770138439600,4.14864689,100.62,100.58,9.9423272]
[1770138439802,6.57477019,100.62,100.58,16.51709739]
[1770138440223,20.66081149,100.63,100.59,6.57477019]
[1770138440417,16.5121646,100.63,100.59,6.57477019]
[1770138440610,6.57477019,100.63,100.59,6.57477019]
[1770138440813,10.66127019,100.64,100.6,6.57477019]
[1770138441009,6.57477019,100.65,100.61,10.66140831]
[1770138441228,6.57477019,100.64,100.61,4.08663812]
[1770138441827,10.66127019,100.65,100.61,10.66140831]
[1770138442135,6.57477019,100.65,100.62,4.08663812]
[1770138442311,4.0865,100.68,100.64,4.08663812]
[1770138442512,10.66127019,100.68,100.64,10.66140831]
[1770138442919,20.5939693,100.68,100.64,10.66140831]
[1770138443224,6.57477019,100.7,100.67,4.08663812]
[1770138443430,16.50278438,100.73,100.69,4.08663812]
[1770138443605,10.66127019,100.74,100.7,4.08663812]
[1770138443807,20.58719367,100.75,100.7,10.66140831]
[1770138444010,6.57477019,100.73,100.7,4.08663812]
[1770138444218,10.66127019,100.73,100.69,4.08663812]
[1770138444422,6.57477019,100.72,100.68,14.0186075]
[1770138444808,6.57477019,100.7,100.66,14.02057086]
[1770138445204,6.57477019,100.68,100.64,4.08663812]
[1770138445427,6.57477019,100.68,100.64,14.0225841]
[1770138445825,0.14216157,100.71,100.63,31.41630998]
[1770138445826,6.57477019,100.7,100.67,14.01958937]
[1770138446234,6.57477019,100.7,100.67,4.08663812]
[1770138446235,16.50590396,100.7,100.67,4.08663812]
[1770138446525,10.66127019,100.69,100.64,4.08663812]
[1770138446730,6.57477019,100.67,100.64,14.02258563]
[1770138447332,6.57477019,100.66,100.64,4.08663812]
[1770138447935,6.57477019,100.67,100.64,14.02267928]
[1770138448313,16.50828866,100.67,100.64,4.08663812]
[1770138448626,6.57477019,100.66,100.64,4.08663812]
[1770138448833,16.50828866,100.67,100.64,4.08663812]
[1770138449712,6.57477019,100.66,100.62,28.93227756]
[1770138449913,6.57477019,100.66,100.63,4.08663812]
[1770138450118,6.57477019,100.66,100.62,9.93786902]
[1770138450119,6.57477019,100.64,100.62,9.93786902]
[1770138450320,6.57477019,100.65,100.61,41.62549585]
[1770138450643,6.57477019,100.64,100.61,31.68663812]
[1770138450831,4.0865,100.63,100.57,4.08663812]
[1770138451034,4.0865,100.64,100.57,4.08663812]
[1770138451231,34.77413797,100.65,100.57,14.02951512]
[1770138451232,6.57477019,100.6,100.57,14.02951512]
[1770138451534,6.57477019,100.61,100.58,4.08663812]
[1770138452325,6.57477019,100.6,100.57,14.02951512]
[1770138452722,6.57477019,100.61,100.58,4.08663812]
[1770138453144,4.0865,100.62,100.56,14.13041205]
[1770138453145,4.0865,100.6,100.56,14.13041205]
[1770138453356,6.57477019,100.58,100.56,0.1]
[1770138453848,6.57477019,100.6,100.56,14.13087822]
[1770138454219,6.57477019,100.59,100.56,4.18663812]
[1770138454419,6.57477019,100.57,100.56,0.1]
[1770138454661,6.57477019,100.57,100.54,9.94620004]
[1770138454943,6.57477019,100.58,100.55,4.08663812]
[1770138455153,6.57477019,100.57,100.54,9.94620004]
[1770138455449,6.57477019,100.57,100.53,14.03370079]
[1770138457158,6.57477019,100.57,100.51,9.94913732]
[1770138457159,4.0865,100.53,100.51,9.94913732]
[1770138457454,38.88813877,100.57,100.52,4.08663812]
[1770138457624,4.0865,100.57,100.54,6.57477019]
[1770138457822,10.66127019,100.58,100.54,6.57477019]
[1770138458041,10.66127019,100.58,100.54,10.66140831]
[1770138458246,6.57477019,100.57,100.54,4.08663812]
[1770138458749,20.60400934,100.58,100.54,10.66140831]
[1770138459253,10.66127019,100.57,100.53,4.08663812]
[1770138459459,6.57477019,100.58,100.54,9.94624626]
[1770138459667,4.0865,100.59,100.55,4.08663812]
[1770138459965,6.57477019,100.6,100.56,4.08663812]
[1770138460169,16.51537298,100.6,100.56,4.08663812]
[1770138460368,6.57477019,100.57,100.54,4.08663812]
[1770138460835,16.51743483,100.58,100.54,4.08663812]
[1770138461036,6.57477019,100.58,100.54,14.03277033]
[1770138461248,10.66127019,100.59,100.54,20.60754052]
[1770138461443,6.57477019,100.58,100.55,4.08663812]
[1770138461650,6.57477019,100.58,100.54,16.5209024]
[1770138461651,14.02615485,100.61,100.57,4.08663812]
[1770138461849,14.02404459,100.63,100.58,10.66140831]
[1770138462159,10.66127019,100.61,100.56,10.66140831]
[1770138462349,6.57477019,100.59,100.56,4.08663812]
[1770138462944,6.57477019,100.58,100.54,41.65265191]
[1770138463144,6.57477019,100.58,100.54,4.08663812]
[1770138463443,6.57477019,100.59,100.56,4.08663812]
[1770138463647,6.57477019,100.6,100.56,14.03072457]
[1770138463850,6.57477019,100.6,100.57,4.08663812]
[1770138464040,10.66127019,100.62,100.58,10.66140831]
[1770138464246,4.0865,100.62,100.58,4.08663812]
[1770138464563,20.60064003,100.61,100.57,4.08663812]
[1770138464751,6.57477019,100.6,100.57,4.08663812]
[1770138464952,4.0865,100.6,100.56,20.60513976]
[1770138465148,14.02516975,100.62,100.57,14.02989725]
[1770138465350,20.59993994,100.62,100.58,4.08663812]
[1770138465662,6.57477019,100.6,100.57,9.94330039]
[1770138465842,16.51343994,100.62,100.57,20.6047087]
[1770138466042,16.51259207,100.63,100.58,6.57477019]
[1770138466244,20.59909207,100.63,100.58,10.66140831]
[1770138466443,20.59909207,100.63,100.58,20.60332585]
[1770138466664,6.57477019,100.61,100.58,14.02855566]
[1770138466845,4.0865,100.58,100.51,28.95811293]
[1770138467065,4.0865,100.58,100.54,4.08663812]
[1770138467251,10.66127019,100.58,100.54,4.08663812]
[1770138467551,27.76216157,100.61,100.56,4.08663812]
[1770138467552,10.66127019,100.61,100.56,4.08663812]
[1770138467757,6.57477019,100.6,100.56,10.66140831]
[1770138467953,6.57477019,100.58,100.56,4.08663812]
[1770138468162,6.57477019,100.58,100.54,10.66140831]
[1770138468365,6.57477019,100.58,100.54,4.08663812]
[1770138468542,6.57477019,100.58,100.54,14.03266903]
[1770138468748,6.57477019,100.57,100.54,4.08663812]
[1770138469852,41.37032265,100.59,100.55,4.08663812]
[1770138470074,16.51695751,100.59,100.55,4.08663812]
[1770138470252,4.0865,100.58,100.54,4.08663812]
[1770138470557,6.57477019,100.57,100.54,4.08663812]
[1770138471045,20.60399984,100.58,100.54,4.08663812]
[1770138471242,6.57477019,100.57,100.54,4.08663812]
[1770138471443,6.57477019,100.55,100.52,4.09120326]
[1770138471950,10.82888858,100.56,100.52,14.03947195]
[1770138472452,34.7985658,100.58,100.54,4.09120326]
[1770138472649,34.7985658,100.58,100.48,67.52885389]
[1770138472650,6.57477019,100.56,100.52,4.09120326]
[1770138472850,6.57477019,100.55,100.52,4.09120326]
[1770138473553,6.57477019,100.55,100.5,4.09120326]
[1770138473554,6.57477019,100.53,100.5,4.09120326]
[1770138473754,6.57477019,100.54,100.5,10.66597345]
[1770138473950,6.57477019,100.54,100.51,4.07298884]
[1770138474154,6.57477019,100.54,100.5,6.57477019]
[1770138474464,6.57477019,100.54,100.48,27.72]
[1770138474670,16.52133892,100.54,100.5,6.57477019]
[1770138475176,6.57477019,100.53,100.49,16.52600911]
[1770138475347,4.08376324,100.53,100.49,16.52600911]
[1770138475680,4.08376324,100.52,100.48,16.62653284]
[1770138475857,10.65853343,100.52,100.48,16.62653284]
[1770138476368,10.65853343,100.52,100.48,20.69952168]
[1770138476759,14.03127979,100.53,100.49,10.64775903]
[1770138477066,4.08376324,100.53,100.49,10.64775903]
[1770138477257,14.03020543,100.54,100.5,4.07298884]
[1770138477458,4.08376324,100.54,100.51,6.57477019]
[1770138477655,14.03025559,100.54,100.5,4.07298884]
[1770138477854,10.65853343,100.53,100.49,4.07298884]
[1770138478555,4.08376324,100.53,100.49,4.07298884]
[1770138478867,20.60582184,100.53,100.49,14.02377399]
[1770138479550,10.65853343,100.52,100.49,9.95078515]
[1770138479751,4.08376324,100.52,100.49,9.95078515]
[1770138480175,4.08376324,100.52,100.48,14.12497624]
[1770138480364,4.08376324,100.52,100.48,20.69974643]
[1770138480562,20.60688204,100.52,100.48,14.12497624]
[1770138480756,10.65853343,100.52,100.48,20.69974643]
[1770138480963,6.57477019,100.53,100.49,10.64775903]
[1770138481169,20.60560941,100.54,100.49,10.64775903]
[1770138481369,10.65853343,100.53,100.49,4.07298884]
[1770138481552,10.65853343,100.53,100.49,10.64775903]
[1770138481747,4.08376324,100.51,100.45,0.14216157]
[1770138481964,4.08376324,100.5,100.44,10.26540951]
[1770138482286,4.08376324,100.52,100.46,10.64775903]
[1770138482483,4.08376324,100.53,100.49,10.64775903]
[1770138482692,4.08376324,100.53,100.5,6.57477019]
[1770138482859,14.02950225,100.55,100.51,6.57477019]
[1770138483061,4.08376324,100.54,100.49,34.82932592]
[1770138483256,4.08376324,100.56,100.52,6.57477019]
[1770138483502,16.51756977,100.58,100.53,10.64775903]
[1770138483669,4.08376324,100.62,100.56,6.57477019]
[1770138483989,10.65853343,100.6,100.55,20.59305987]
[1770138484162,10.65853343,100.6,100.56,6.57477019]
[1770138484560,4.08376324,100.6,100.57,6.57477019]
[1770138484770,9.93739441,100.63,100.59,6.57477019]
[1770138485086,16.5121646,100.63,100.58,10.64775903]
[1770138485279,6.57477019,100.62,100.57,6.57477019]
[1770138485481,6.57477019,100.61,100.57,4.07298884]
[1770138485862,6.57477019,100.6,100.57,14.01625303]
[1770138486067,6.57477019,100.61,100.57,14.01625303]
[1770138486470,6.57477019,100.6,100.55,20.59244416]
[1770138486777,4.08376324,100.61,100.57,16.51809003]
[1770138486972,6.57477019,100.6,100.56,6.57477019]
[1770138487179,6.57477019,100.59,100.55,20.59271143]
[1770138487369,6.57477019,100.56,100.53,14.02014835]
[1770138487685,10.65853343,100.54,100.5,9.94956199]
[1770138487989,6.57477019,100.53,100.5,9.94956199]
[1770138488164,6.57477019,100.53,100.49,14.02399676]
[1770138488488,6.59173117,100.52,100.49,4.07298884]
[1770138488668,10.67549441,100.52,100.47,20.61752114]
[1770138488871,4.08376324,100.52,100.48,14.02514505]
[1770138489178,4.08376324,100.53,100.49,9.95118548]
[1770138489964,14.03128041,100.53,100.48,14.02479864]
[1770138490166,4.08376324,100.52,100.48,14.02479864]
[1770138490887,6.59173117,100.51,100.47,9.95284668]
[1770138491069,6.59173117,100.5,100.46,14.0271344]
[1770138491269,10.67549441,100.5,100.46,14.0271344]
[1770138491770,6.59173117,100.49,100.46,14.0271344]
[1770138491971,20.62410876,100.52,100.47,20.61785223]
[1770138492176,20.62178563,100.54,100.48,4.07298884]
[1770138492384,20.62178563,100.54,100.5,10.66472001]
[1770138492385,4.08376324,100.54,100.5,10.66472001]
[1770138492574,6.59173117,100.55,100.5,10.66472001]
[1770138492774,27.64,100.58,100.5,10.66472001]
[1770138492775,10.67549441,100.58,100.54,6.59173117]
[1770138492988,4.08376324,100.58,100.54,6.59173117]
[1770138493187,9.9423935,100.58,100.53,10.66472001]
[1770138493392,6.59173117,100.56,100.51,10.66472001]
[1770138493578,4.08376324,100.56,100.52,6.59173117]
[1770138493771,4.08376324,100.56,100.51,4.07298884]
[1770138493973,4.08376324,100.56,100.52,16.53956753]
[1770138494281,4.08376324,100.59,100.55,6.59173117]
[1770138494587,14.0251276,100.59,100.55,6.59173117]
[1770138494995,4.08376324,100.59,100.56,6.59173117]
[1770138495187,10.67549441,100.58,100.53,10.66472001]
[1770138495392,6.59173117,100.57,100.53,10.66472001]
[1770138495690,10.67549441,100.58,100.53,10.66472001]
[1770138495990,4.08376324,100.58,100.55,9.94530084]
[1770138496183,20.61713525,100.59,100.54,20.61083562]
[1770138496386,20.61713525,100.59,100.55,6.59173117]
[1770138496592,4.08376324,100.61,100.57,10.66472001]
[1770138496897,4.08376324,100.61,100.58,6.59173117]
[1770138497186,10.67549441,100.61,100.57,10.66472001]
[1770138497391,4.08376324,100.61,100.57,10.66472001]
[1770138497979,14.0232058,100.61,100.57,20.60728667]
[1770138498186,20.61493697,100.61,100.57,20.60728667]
[1770138498576,4.08376324,100.63,100.59,6.59173117]
[1770138498775,10.67549441,100.63,100.59,6.59173117]
[1770138498975,4.08376324,100.63,100.59,6.59173117]
[1770138499788,10.67549441,100.63,100.59,16.53263079]
[1770138500004,9.93648361,100.64,100.59,16.53263079]
[1770138500005,4.08376324,100.67,100.62,6.59173117]
[1770138500173,4.08376324,100.66,100.63,6.59173117]
[1770138500378,0.2,100.68,100.65,6.59173117]
[1770138500737,4.17143487,100.66,100.62,6.59173117]
[1770138500999,10.76316604,100.64,100.6,4.39168002]
[1770138501178,4.17143487,100.66,100.62,6.59173117]
[1770138501378,6.59173117,100.65,100.61,10.98341119]
[1770138501577,10.76316604,100.64,100.59,45.77767595]
[1770138501788,6.59173117,100.63,100.59,45.77767595]
[1770138501992,10.76316604,100.64,100.59,45.77767595]
[1770138502381,6.59173117,100.63,100.59,39.18594478]
[1770138502588,10.76316604,100.64,100.6,4.39168002]
[1770138502895,6.59173117,100.62,100.59,9.94089962]
[1770138503282,6.59173117,100.62,100.58,14.33356713]
[1770138503498,10.76316604,100.63,100.59,14.33286403]
[1770138503701,6.59173117,100.63,100.59,14.33286403]
[1770138504011,10.76316604,100.65,100.61,9.93936984]
[1770138504515,10.76316604,100.65,100.58,0.28432314]
[1770138504516,6.59173117,100.62,100.58,10.98341119]
[1770138504715,10.76316604,100.62,100.58,14.33370666]
[1770138505040,6.59173117,100.61,100.58,14.33370666]
[1770138505197,4.17143487,100.64,100.59,9.94132274]
[1770138505397,6.59173117,100.63,100.6,9.94034092]